bitfinex-derivatives/quotes_BTCF0:USTF0_20250417
["timestamp","ask_amount","ask_price","bid_price","bid_amount"]
[1744917278451,0.355398,84970.0,84969.0,0.17931961]
[1744917279059,0.355398,84970.0,84969.0,0.29701891]
[1744917279451,0.355398,84970.0,84969.0,0.17931961]
[1744917282463,0.1177007,84968.0,84967.0,0.080608]
[1744917282659,0.1177007,84968.0,84967.0,0.1983101]
[1744917282865,0.1177007,84968.0,84967.0,0.080608]
[1744917283368,0.1177007,84968.0,84967.0,0.000108]
[1744917285365,0.2801007,84968.0,84967.0,0.000108]
[1744917287268,0.1997007,84968.0,84967.0,0.1178101]
[1744917287660,0.1997007,84968.0,84967.0,0.000108]
[1744917287861,0.1997007,84968.0,84967.0,0.164308]
[1744917288066,0.1997007,84968.0,84967.0,0.2820101]
[1744917288264,0.1997007,84968.0,84967.0,0.164308]
[1744917291970,0.1177007,84968.0,84967.0,0.164308]
[1744917296175,0.4784956,84972.0,84967.0,0.164308]
[1744917296371,0.0588459,84975.0,84974.0,0.2353789]
[1744917297069,0.1765329,84977.0,84976.0,0.1176896]
[1744917297471,0.117686,84979.0,84978.0,0.1176855]
[1744917297673,0.00017652,84980.0,84979.0,0.1176855]
[1744917301668,0.00017652,84980.0,84979.0,0.2007855]
[1744917303376,0.11786062,84980.0,84979.0,0.2007855]
[1744917304081,0.00017652,84980.0,84979.0,0.2007855]
[1744917305074,0.11786062,84980.0,84979.0,0.2007855]
[1744917305677,0.11786062,84980.0,84979.0,0.2008655]
[1744917305876,0.19586062,84980.0,84979.0,0.2008655]
[1744917306181,0.07817652,84980.0,84979.0,0.2008655]
[1744917308577,0.19586062,84980.0,84979.0,0.08318]
[1744917308777,0.1176966,84974.0,84973.0,0.0588465]
[1744917309074,0.1176966,84974.0,84971.0,0.0588483]
[1744917309075,0.1176938,84973.0,84972.0,0.0001458]
[1744917309281,0.1765524,84969.0,84968.0,0.176551]
[1744917309477,0.2354027,84969.0,84968.0,0.176551]
[1744917309677,0.1177006,84969.0,84968.0,0.176551]
[1744917309892,0.1976946,84973.0,84972.0,0.1176952]
[1744917310075,0.1976946,84973.0,84972.0,0.1177752]
[1744917310785,0.1976938,84973.0,84972.0,0.1973752]
[1744917312183,0.1976938,84973.0,84972.0,0.2762752]
[1744917312681,0.3608,84995.0,84972.0,0.15858]
[1744917312887,0.0588282,85000.0,84995.0,0.1176582]
[1744917313085,0.1572,85001.0,84997.0,0.1176606]
[1744917313283,0.1176592,84998.0,84997.0,0.1176606]
[1744917314480,0.1938592,84998.0,84997.0,0.1176606]
[1744917319987,0.0588329,84994.0,84993.0,0.1176661]
[1744917320188,0.4196329,84994.0,84993.0,0.1176661]
[1744917320388,0.5778329,84994.0,84993.0,0.1177461]
[1744917321695,0.6955004,84994.0,84993.0,0.1177461]
[1744917325795,0.6955004,84994.0,84993.0,8e-05]
[1744917326097,0.1176661,84993.0,84992.0,0.1176671]
[1744917326284,0.5778329,84994.0,84990.0,0.117669]
[1744917326285,0.1765067,84991.0,84990.0,0.117669]
[1744917326799,0.1358351,84991.0,84990.0,0.117669]
[1744917326987,0.2133351,84991.0,84990.0,0.117669]
[1744917327390,0.1176716,84989.0,84988.0,0.0588358]
[1744917327897,0.1176716,84989.0,84988.0,0.0589158]
[1744917329499,0.1176841,84980.0,84979.0,0.000108]
[1744917329687,0.117698,84970.0,84969.0,0.0802]
[1744917329886,0.117698,84970.0,84969.0,0.1978993]
[1744917329887,0.478498,84970.0,84969.0,0.1978993]
[1744917330091,0.641698,84970.0,84969.0,0.1978993]
[1744917330792,0.6537077,84970.0,84969.0,0.1978993]
[1744917330988,0.641698,84970.0,84969.0,0.1979793]
[1744917333286,0.73070973,84970.0,84969.0,0.1979793]
[1744917334291,0.73070973,84970.0,84969.0,0.08028]
[1744917334691,0.73070973,84970.0,84969.0,0.1979793]
[1744917335394,0.73070973,84970.0,84969.0,0.08028]
[1744917335594,0.73070973,84970.0,84963.0,0.081]
[1744917335595,0.1177049,84965.0,84964.0,0.1970055]
[1744917335796,0.1177049,84965.0,84964.0,0.2794063]
[1744917336495,0.1951049,84965.0,84964.0,0.2794063]
[1744917338793,0.1177011,84968.0,84967.0,0.1177021]
[1744917338996,0.1177011,84968.0,84967.0,0.2756021]
[1744917339191,0.4397,84970.0,84969.0,0.1176993]
[1744917339390,0.478498,84970.0,84969.0,0.1176993]
[1744917339590,0.478498,84970.0,84969.0,0.3533993]
[1744917340200,0.557398,84970.0,84969.0,0.3533993]
[1744917341299,0.3608,84970.0,84969.0,0.3533993]
[1744917341500,0.20669493,84981.0,84980.0,0.1176841]
[1744917341899,0.1176832,84981.0,84980.0,0.1176841]
[1744917342399,0.1976832,84981.0,84980.0,0.1176841]
[1744917343001,0.1176814,84982.0,84981.0,0.1765226]
[1744917343197,0.08901173,84983.0,84982.0,0.1176813]
[1744917343506,0.08901173,84983.0,84982.0,0.2779813]
[1744917346995,0.00017652,84988.0,84985.0,0.0588386]
[1744917347201,0.00017652,84988.0,84987.0,0.1176744]
[1744917347602,0.11784952,84988.0,84987.0,0.2786744]
[1744917347898,0.00017652,84988.0,84987.0,0.2786744]
[1744917348611,0.11784952,84988.0,84987.0,0.2786744]
[1744917348911,0.00017652,84988.0,84987.0,0.2786744]
[1744917351053,0.11784952,84988.0,84987.0,0.2786744]
[1744917352112,0.00017652,84988.0,84987.0,0.2786744]
[1744917354010,0.0588255,85004.0,85003.0,0.176477]
[1744917354400,0.1423255,85004.0,85003.0,0.176477]
[1744917355318,0.2204255,85004.0,85003.0,0.176477]
[1744917356111,0.08901173,85005.0,85004.0,0.1176509]
[1744917356307,0.08901173,85005.0,85004.0,0.1943509]
[1744917357413,0.0781,85007.0,85006.0,0.1176481]
[1744917357812,0.005,85008.0,85007.0,0.1176467]
[1744917361224,0.005,85008.0,85007.0,0.1976467]
[1744917361718,0.1226453,85008.0,85007.0,0.1176467]
[1744917362226,0.2823453,85008.0,85007.0,0.1177267]
[1744917364118,0.2823453,85008.0,85007.0,0.1176467]
[1744917364519,0.2235226,85008.0,85004.0,0.176473]
[1744917364717,0.1176495,85005.0,85004.0,0.2352984]
[1744917365113,0.2803495,85005.0,85004.0,0.2352984]
[1744917365319,0.2803495,85005.0,85004.0,0.2353784]
[1744917365921,0.2803495,85005.0,85004.0,8e-05]
[1744917367828,0.2803495,85005.0,85004.0,0.1177309]
[1744917368126,0.1176523,85003.0,85002.0,0.1176528]
[1744917368321,0.4784523,85003.0,85002.0,0.1176528]
[1744917368531,0.6400523,85003.0,85002.0,0.1176528]
[1744917368718,0.1764839,85001.0,85000.0,0.1176553]
[1744917368919,0.1176592,84998.0,84997.0,0.1177686]
[1744917369425,0.2792592,84998.0,84997.0,0.000108]
[1744917369825,0.1764923,84997.0,84996.0,0.0588309]
[1744917370224,0.3382923,84997.0,84996.0,0.0588309]
[1744917370727,0.117662,84996.0,84995.0,0.11783982]
[1744917371131,0.279462,84996.0,84995.0,0.11783982]
[1744917371524,0.279462,84996.0,84995.0,0.00017652]
[1744917371930,0.279462,84996.0,84995.0,0.11783982]
[1744917373229,0.279462,84996.0,84995.0,0.00017652]
[1744917373634,0.279462,84996.0,84995.0,0.11783982]
[1744917373936,0.279462,84996.0,84995.0,0.11791982]
[1744917374529,0.279462,84996.0,84995.0,0.00025652]
[1744917374928,0.1176703,84990.0,84989.0,0.000108]
[1744917375124,0.1765275,84980.0,84979.0,0.1176845]
[1744917375423,0.1176896,84976.0,84975.0,0.0588448]
[1744917375828,0.1765421,84974.0,84973.0,0.1176927]
[1744917376033,0.0588476,84972.0,84971.0,0.117696]
[1744917376228,0.1765442,84972.0,84971.0,0.117696]
[1744917376422,0.1765442,84972.0,84971.0,0.117776]
[1744917376626,0.3359442,84972.0,84971.0,8e-05]
[1744917377222,0.117698,84970.0,84969.0,0.17931961]
[1744917377624,0.117698,84970.0,84966.0,0.1178106]
[1744917377625,0.1177021,84967.0,84966.0,0.1178106]
[1744917377824,0.4785021,84967.0,84966.0,0.000108]
[1744917378218,0.1177077,84963.0,84962.0,0.1942088]
[1744917378618,0.1177077,84963.0,84962.0,0.0765]
[1744917378830,0.1177201,84954.0,84949.0,0.23837934]
[1744917379033,0.1177201,84954.0,84949.0,0.17951644]
[1744917379232,0.12675377,84954.0,84953.0,0.00525842]
[1744917379528,0.12675377,84954.0,84953.0,0.00506159]
[1744917379729,0.1177257,84950.0,84949.0,0.17942761]
[1744917379928,0.1177257,84950.0,84949.0,0.17931961]
[1744917380124,0.1177257,84950.0,84949.0,0.17939961]
[1744917380321,0.1177326,84945.0,84944.0,0.23909282]
[1744917380629,0.1177409,84939.0,84931.0,0.35863923]
[1744917380822,0.1177409,84939.0,84934.0,0.000108]
[1744917381132,0.1177562,84928.0,84927.0,0.00506314]
[1744917381331,0.4785562,84928.0,84927.0,0.00517114]
[1744917381629,0.4785562,84928.0,84927.0,0.00506314]
[1744917381825,0.4785562,84928.0,84927.0,0.00514314]
[1744917382023,0.6415562,84928.0,84927.0,0.00514314]
[1744917385020,0.5622562,84928.0,84927.0,0.00514314]
[1744917385220,0.5622562,84928.0,84927.0,0.16434314]
[1744917385628,0.4785562,84928.0,84927.0,0.28210074]
[1744917387219,0.4785562,84928.0,84927.0,0.16434314]
[1744917387429,0.4785562,84928.0,84927.0,0.00514314]
[1744917387628,0.4785562,84928.0,84927.0,0.00506314]
[1744917387832,0.4785562,84928.0,84927.0,0.00514314]
[1744917388029,0.5584562,84928.0,84927.0,0.00514314]
[1744917388425,0.1177728,84916.0,84910.0,0.36106572]
[1744917388625,0.1177728,84916.0,84915.0,0.1610458]
[1744917388940,0.1177728,84916.0,84915.0,0.16098]
[1744917390633,0.1177728,84916.0,84915.0,0.1609]
[1744917390837,0.1177728,84916.0,84915.0,0.16098]
[1744917391627,0.4785728,84916.0,84915.0,0.1609]
[1744917391826,0.4785728,84916.0,84915.0,0.16098]
[1744917392126,0.4785728,84916.0,84915.0,0.07938]
[1744917392533,0.4785728,84916.0,84915.0,8e-05]
[1744917392730,0.117777,84913.0,84912.0,0.0804]
[1744917394134,0.117777,84913.0,84912.0,0.4412]
[1744917394322,0.117777,84913.0,84912.0,0.5589784]
[1744917394521,0.117777,84913.0,84912.0,0.1981784]
[1744917394926,0.117777,84913.0,84912.0,0.5589784]
[1744917395433,0.117777,84913.0,84912.0,0.4412]
[1744917395731,0.478577,84913.0,84912.0,0.0804]
[1744917396329,0.633977,84913.0,84912.0,0.08048]
[1744917396530,0.1177825,84909.0,84908.0,0.000108]
[1744917396731,0.4785825,84909.0,84908.0,0.000108]
[1744917397038,0.4785825,84909.0,84902.0,0.1627]
[1744917397039,0.0588933,84906.0,84902.0,0.1627]
[1744917397236,0.3608,84909.0,84880.0,0.01209094]
[1744917397237,0.1178103,84889.0,84888.0,0.0766]
[1744917397442,0.1178103,84889.0,84888.0,0.1944117]
[1744917397733,0.1178103,84889.0,84888.0,0.1944917]
[1744917397924,0.1178103,84889.0,84888.0,0.1944117]
[1744917398124,0.1178103,84889.0,84888.0,0.1944917]
[1744917398337,0.1178039,84894.0,84893.0,0.1178033]
[1744917398524,0.1178039,84894.0,84893.0,0.1957033]
[1744917398726,0.00017663,84897.0,84896.0,0.1178006]
[1744917398928,0.11797583,84897.0,84896.0,0.4786006]
[1744917399130,0.00017663,84897.0,84896.0,0.4786006]
[1744917399530,0.11797583,84897.0,84896.0,0.4886006]
[1744917399725,0.00017663,84897.0,84896.0,0.4886006]
[1744917400031,0.11797583,84897.0,84896.0,0.4886006]
[1744917400337,0.11797583,84897.0,84896.0,0.4786006]
[1744917405339,0.00017663,84897.0,84896.0,0.4786006]
[1744917405641,0.11797583,84897.0,84896.0,0.4786006]
[1744917405834,0.11797583,84897.0,84896.0,0.1178006]
[1744917406037,0.11797583,84897.0,84896.0,0.4786006]
[1744917406234,0.00017663,84897.0,84896.0,0.4786006]
[1744917406441,0.11797583,84897.0,84896.0,0.4786006]
[1744917406831,0.11797583,84897.0,84896.0,0.1178006]
[1744917407043,0.11797583,84897.0,84896.0,0.4786006]
[1744917407639,0.11797583,84897.0,84896.0,0.6341006]
[1744917408033,0.11797583,84897.0,84896.0,0.2733006]
[1744917408233,0.11797583,84897.0,84896.0,0.6341006]
[1744917408441,0.00017663,84897.0,84896.0,0.6341006]
[1744917409834,0.00017663,84897.0,84896.0,0.7205006]
[1744917410146,0.0588907,84910.0,84909.0,0.1177825]
[1744917410637,0.0588907,84910.0,84909.0,0.3606825]
[1744917411131,0.0588907,84910.0,84909.0,0.7214825]
[1744917411336,0.176665,84914.0,84913.0,0.117777]
[1744917411830,0.058888,84914.0,84913.0,0.281877]
[1744917412640,0.141988,84914.0,84913.0,0.117777]
[1744917412835,0.218288,84914.0,84913.0,0.117777]
[1744917413247,0.218288,84914.0,84913.0,0.117857]
[1744917415242,0.0588927,84907.0,84905.0,0.000108]
[1744917415443,0.6377867,84906.0,84905.0,0.000108]
[1744917415647,0.1177895,84904.0,84903.0,0.257983]
[1744917415847,0.1177895,84904.0,84903.0,0.0813]
[1744917416040,0.1177922,84902.0,84901.0,0.00017663]
[1744917416552,0.2888061,84902.0,84901.0,0.00017663]
[1744917417037,0.2888061,84902.0,84901.0,0.00025663]
[1744917417233,0.1767188,84888.0,84887.0,0.1767188]
[1744917417839,0.3359188,84888.0,84887.0,0.1767188]
[1744917418038,0.3359188,84888.0,84887.0,0.0589063]
[1744917418444,0.3359188,84888.0,84887.0,8e-05]
[1744917418648,0.0589109,84881.0,84875.0,0.00506624]
[1744917418943,0.1178283,84876.0,84875.0,0.12289594]
[1744917419446,0.1178283,84876.0,84866.0,0.000108]
[1744917419447,0.1178408,84867.0,84866.0,0.000108]
[1744917419643,0.3608,84876.0,84862.0,0.29975795]
[1744917419644,0.2424,84875.0,84862.0,0.29961215]
[1744917419940,0.1178464,84863.0,84862.0,0.41745985]
[1744917420141,0.0774,84866.0,84865.0,0.1178436]
[1744917420349,0.08327674,84875.0,84874.0,0.1178311]
[1744917420550,0.20110644,84875.0,84874.0,0.1178311]
[1744917420850,0.1178325,84873.0,84872.0,0.0789]
[1744917421050,0.1178325,84873.0,84872.0,0.1967339]
[1744917421253,0.1178325,84873.0,84872.0,0.0789]
[1744917421543,0.1178436,84865.0,84864.0,0.0864]
[1744917422346,0.4786436,84865.0,84864.0,0.08648]
[1744917422549,0.1178436,84865.0,84864.0,8e-05]
[1744917423047,0.1995436,84865.0,84864.0,8e-05]
[1744917423245,0.1178436,84865.0,84864.0,0.117925]
[1744917426950,0.1178436,84865.0,84864.0,8e-05]
[1744917427441,0.1942436,84865.0,84864.0,8e-05]
[1744917427639,0.1178477,84862.0,84861.0,0.0816]
[1744917428549,0.1178477,84862.0,84861.0,0.1994491]
[1744917429243,0.1178477,84862.0,84861.0,0.0816]
[1744917430047,0.1178477,84862.0,84861.0,0.08168]
[1744917430241,0.1178477,84862.0,84861.0,0.1995291]
[1744917431949,0.1178477,84862.0,84861.0,0.1179291]
[1744917432742,0.1178477,84862.0,84861.0,0.1178491]
[1744917432947,0.1178477,84862.0,84861.0,0.1179291]
[1744917434353,0.1178547,84857.0,84856.0,0.000108]
[1744917434853,0.1178616,84852.0,84851.0,0.0824]
[1744917435257,0.0774,84856.0,84855.0,0.1178575]
[1744917435756,0.2005471,84863.0,84862.0,0.1178477]
[1744917436353,0.1178438,84865.0,84864.0,0.117845]
[1744917437640,0.1178438,84865.0,84864.0,0.201845]
[1744917437845,0.2798413,84867.0,84866.0,0.1178422]
[1744917438046,0.2798413,84867.0,84866.0,0.4786422]
[1744917438353,0.1999413,84867.0,84866.0,0.1178422]
[1744917439255,0.1178436,84865.0,84864.0,0.2018422]
[1744917439455,0.1178436,84865.0,84864.0,0.2607646]
[1744917439652,0.08868465,84875.0,84872.0,0.0589164]
[1744917439854,0.08868465,84875.0,84874.0,0.1178311]
[1744917440348,0.08868465,84875.0,84874.0,0.2784311]
[1744917441356,0.00017674,84875.0,84874.0,0.2784311]
[1744917445859,0.00017674,84875.0,84874.0,0.6392311]
[1744917446064,0.1178014,84896.0,84895.0,0.1178019]
[1744917446757,0.1178014,84896.0,84895.0,0.3356023]
[1744917446958,0.0834,84898.0,84897.0,0.1177992]
[1744917447158,0.2011978,84898.0,84897.0,0.1177992]
[1744917447756,0.0834,84898.0,84897.0,0.1177992]
[1744917448058,0.00517674,84904.0,84899.0,0.1177964]
[1744917448059,0.08850791,84900.0,84899.0,0.1177964]
[1744917449162,0.20630291,84900.0,84899.0,0.1177964]
[1744917450061,0.08850791,84900.0,84899.0,0.1177964]
[1744917450861,0.16710791,84900.0,84899.0,0.1177964]
[1744917451470,0.0786,84900.0,84899.0,0.1177964]
[1744917451766,0.00517674,84904.0,84903.0,0.1177908]
[1744917452361,0.00517674,84904.0,84903.0,0.2712908]
[1744917454568,0.12296624,84904.0,84903.0,0.1177908]
[1744917454774,0.12296624,84904.0,84903.0,0.1178708]
[1744917455680,0.20066624,84904.0,84903.0,0.1178708]
[1744917457058,0.20066624,84904.0,84903.0,8e-05]
[1744917457257,0.1766917,84902.0,84901.0,0.1177933]
[1744917457473,0.117795,84900.0,84899.0,0.09768]
[1744917457858,0.117795,84900.0,84899.0,0.2154764]
[1744917458072,0.1177978,84898.0,84897.0,0.0588994]
[1744917458267,0.1767021,84897.0,84896.0,0.1177999]
[1744917458466,0.3383021,84897.0,84896.0,0.1177999]
[1744917458868,0.1178019,84895.0,84894.0,0.058901]
[1744917459469,0.1178019,84895.0,84894.0,8e-05]
[1744917459663,0.1178117,84888.0,84866.0,0.3608]
[1744917459862,0.4786117,84888.0,84877.0,0.0589133]
[1744917460065,0.1178339,84873.0,84872.0,0.1767484]
[1744917460572,0.1616,84873.0,84865.0,0.3608]
[1744917460869,0.1178422,84867.0,84866.0,0.1767631]
[1744917461067,0.1178422,84867.0,84866.0,0.2555631]
[1744917461467,0.1178422,84867.0,84866.0,0.1768431]
[1744917461663,0.2813422,84867.0,84866.0,0.1768431]
[1744917462267,0.2813422,84867.0,84866.0,8e-05]
[1744917462667,0.2813422,84867.0,84866.0,0.1178422]
[1744917462862,0.2813422,84867.0,84866.0,0.1179222]
[1744917463263,0.2813422,84867.0,84866.0,0.1178422]
[1744917463463,0.2813422,84867.0,84866.0,0.1179222]
[1744917467176,0.2813422,84867.0,84866.0,8e-05]
[1744917467569,0.6421422,84867.0,84866.0,8e-05]
[1744917467774,0.235722,84856.0,84855.0,0.0589286]
[1744917468076,0.596522,84856.0,84855.0,0.0590366]
[1744917468477,0.596522,84856.0,84855.0,0.000108]
[1744917469368,0.1178644,84851.0,84850.0,0.1178638]
[1744917469771,0.1178644,84850.0,84849.0,0.1229336]
[1744917470273,0.2816644,84850.0,84849.0,0.0050678]
[1744917471080,0.2816644,84850.0,84849.0,0.0051478]
[1744917471672,0.2816644,84850.0,84849.0,0.0050678]
[1744917471873,0.2816644,84850.0,84849.0,0.0051478]
[1744917473170,0.2816644,84850.0,84849.0,0.0050678]
[1744917473366,0.2816644,84850.0,84849.0,0.0051478]
[1744917474076,0.2816644,84850.0,84838.0,0.0001458]
[1744917474077,0.0589363,84845.0,84838.0,0.0001458]
[1744917474278,0.1178866,84834.0,84833.0,0.1959874]
[1744917474668,0.1178866,84834.0,84833.0,0.0781]
[1744917474882,0.1178866,84834.0,84833.0,0.195988]
[1744917475077,0.2737866,84834.0,84833.0,0.196068]
[1744917475273,0.2737866,84834.0,84833.0,0.195988]
[1744917475475,0.2737866,84834.0,84833.0,0.196068]
[1744917475680,0.2737866,84834.0,84833.0,0.195988]
[1744917475977,0.2737866,84834.0,84833.0,0.196068]
[1744917476180,0.2737866,84834.0,84833.0,0.07818]
[1744917476370,0.2737866,84834.0,84833.0,0.196068]
[1744917476575,0.235761,84841.0,84840.0,0.1178783]
[1744917477970,0.235761,84841.0,84840.0,0.1960783]
[1744917478173,0.1178866,84834.0,84833.0,8e-05]
[1744917478676,0.1178866,84834.0,84833.0,0.117888]
[1744917478878,0.2010866,84834.0,84833.0,0.117968]
[1744917479471,0.2813866,84834.0,84833.0,0.117968]
[1744917479775,0.2813866,84834.0,84833.0,8e-05]
[1744917479978,0.2813866,84834.0,84833.0,0.117968]
[1744917480170,0.2813866,84834.0,84833.0,8e-05]
[1744917481673,0.117888,84833.0,84832.0,0.05783]
[1744917482070,0.279688,84833.0,84832.0,0.05783]
[1744917482271,0.1178992,84825.0,84824.0,0.000108]
[1744917482481,0.1179033,84822.0,84821.0,0.0812]
[1744917482675,0.1179033,84822.0,84821.0,0.1628]
[1744917482871,0.1179033,84822.0,84821.0,0.16288]
[1744917483379,0.1179033,84822.0,84821.0,0.08128]
[1744917483993,0.1179131,84815.0,84814.0,0.000108]
[1744917484288,0.0589565,84815.0,84811.0,0.0812]
[1744917484582,0.1179158,84813.0,84812.0,0.1995172]
[1744917485473,0.4197503,84824.0,84818.0,0.1179089]
[1744917485678,0.3608,84824.0,84822.0,0.1179033]
[1744917485874,0.0589482,84827.0,84822.0,0.1179033]
[1744917486188,0.0589381,84842.0,84839.0,0.0589396]
[1744917486393,0.1768248,84838.0,84837.0,0.117879]
[1744917486690,0.1768248,84838.0,84832.0,0.3608]
[1744917486691,0.1178853,84835.0,84834.0,0.0825]
[1744917487082,0.1178964,84827.0,84820.0,0.0589525]
[1744917487389,0.0589448,84832.0,84823.0,0.1179014]
[1744917487390,0.1179005,84824.0,84823.0,0.1179014]
[1744917487682,0.1179005,84824.0,84823.0,0.11809823]
[1744917487886,0.1179005,84824.0,84823.0,0.1179014]
[1744917488078,0.1179005,84824.0,84823.0,0.1179814]
[1744917488781,0.1178975,84827.0,84826.0,0.1178964]
[1744917489690,0.1957975,84827.0,84826.0,0.1178964]
[1744917493091,0.0589477,84828.0,84824.0,0.0589497]
[1744917493092,0.0589442,84833.0,84832.0,0.0589435]
[1744917493284,0.0589452,84832.0,84830.0,0.117892]
[1744917493487,0.1178922,84831.0,84830.0,0.117892]
[1744917494003,0.2005922,84831.0,84830.0,0.117892]
[1744917494492,0.2782922,84831.0,84830.0,0.117892]
[1744917495392,0.2005922,84831.0,84830.0,0.117892]
[1744917495787,0.1178922,84831.0,84830.0,0.117892]
[1744917495982,0.1768297,84835.0,84834.0,0.1178866]
[1744917496697,0.1768424,84830.0,84829.0,0.1768328]
[1744917497782,0.1768424,84830.0,84829.0,0.2357791]
[1744917498092,0.20655935,84843.0,84842.0,0.1178755]
[1744917498294,0.08868475,84843.0,84842.0,0.1178755]
[1744917498595,0.20655885,84843.0,84842.0,0.1178755]
[1744917498787,0.1178811,84838.0,84837.0,0.0809]
[1744917498995,0.117888,84834.0,84833.0,0.176832]
[1744917499382,0.1178866,84834.0,84833.0,0.176832]
[1744917500088,0.1953866,84834.0,84833.0,0.176832]
[1744917501389,0.0809,84841.0,84840.0,0.1178783]
[1744917501784,0.1987769,84841.0,84840.0,0.1178783]
[1744917502481,0.1987769,84841.0,84840.0,0.1942783]
[1744917502886,0.00017684,84843.0,84842.0,0.1178755]
[1744917503288,0.11805094,84843.0,84842.0,0.1178755]
[1744917503692,0.11805094,84843.0,84842.0,0.1179555]
[1744917503996,0.27935094,84843.0,84842.0,8e-05]
[1744917504191,0.27935094,84843.0,84840.0,0.0589389]
[1744917504192,0.1768188,84841.0,84840.0,0.0589389]
[1744917504585,0.1178797,84839.0,84838.0,0.0783]
[1744917504783,0.1178797,84839.0,84838.0,0.1961811]
[1744917505692,0.2202391,84841.0,84840.0,0.1178783]
[1744917505898,0.1412391,84841.0,84840.0,0.1178783]
[1744917506284,0.1412391,84841.0,84840.0,0.1961783]
[1744917506698,0.08868475,84843.0,84842.0,0.1178755]
[1744917509391,0.00017684,84843.0,84842.0,0.1178755]
[1744917509592,0.00017684,84843.0,84842.0,0.1278755]
[1744917512789,0.00017684,84843.0,84842.0,0.2439955]
[1744917514297,0.08850791,84855.0,84854.0,0.1178589]
[1744917514688,0.11801055,84861.0,84860.0,0.1178505]
[1744917514995,0.14751319,84868.0,84867.0,0.1178408]
[1744917515201,0.14751319,84868.0,84867.0,0.4786408]
[1744917515886,0.14751319,84868.0,84867.0,0.1178408]
[1744917516086,0.14751319,84868.0,84867.0,0.2742408]
[1744917518296,0.1767505,84873.0,84872.0,0.1178325]
[1744917518496,0.1767505,84873.0,84872.0,0.1948325]
[1744917518701,0.1767505,84873.0,84872.0,0.1949125]
[1744917518904,0.0589169,84873.0,84872.0,0.1949125]
[1744917520704,0.0589169,84873.0,84872.0,0.1948325]
[1744917520900,0.0589169,84873.0,84872.0,0.1949125]
[1744917521101,0.1382169,84873.0,84872.0,0.1948325]
[1744917521905,0.1382169,84873.0,84872.0,0.1949125]
[1744917522904,0.0793,84873.0,84872.0,0.1949125]
[1744917523106,0.3608,84874.0,84872.0,0.1949125]
[1744917523107,0.4786312,84874.0,84873.0,0.1178325]
[1744917523404,0.3608,84874.0,84873.0,0.2799325]
[1744917524104,0.1767193,84890.0,84885.0,0.0589076]
[1744917524308,0.0589049,84890.0,84889.0,0.1178089]
[1744917525407,0.2029049,84890.0,84889.0,0.1178089]
[1744917525801,0.2618089,84890.0,84889.0,0.1178089]
[1744917526002,0.3608,84891.0,84890.0,0.1178089]
[1744917526211,0.4786075,84891.0,84890.0,0.1178089]
[1744917528614,0.3608,84891.0,84890.0,0.1178089]
[1744917528801,0.4786075,84891.0,84890.0,0.1178089]
[1744917530207,0.3608,84891.0,84890.0,0.1178089]
[1744917530404,0.4786075,84891.0,84890.0,0.1178089]
[1744917531009,0.3608,84891.0,84890.0,0.1178089]
[1744917531210,0.4786075,84891.0,84890.0,0.1178089]
[1744917531710,0.3608,84891.0,84890.0,0.2522089]
[1744917532411,0.3608,84891.0,84890.0,0.1847089]
[1744917532608,0.1767209,84887.0,84886.0,0.1178117]
[1744917532810,0.0589093,84884.0,84881.0,0.00032253]
[1744917532998,0.11782,84882.0,84881.0,0.00032253]
[1744917533199,0.1178436,84865.0,84864.0,0.1847442]
[1744917533400,0.1178464,84863.0,84861.0,0.06769683]
[1744917533610,0.1178464,84863.0,84862.0,0.1178477]
[1744917533809,0.1178464,84863.0,84862.0,0.1179277]
[1744917534002,0.2530464,84863.0,84862.0,0.1179277]
[1744917534202,0.2530464,84863.0,84862.0,8e-05]
[1744917534710,0.2530464,84863.0,84855.0,0.000108]
[1744917534711,0.0589269,84858.0,84846.0,0.3608]
[1744917534902,0.1178575,84855.0,84851.0,0.0001458]
[1744917535106,0.1178575,84855.0,84846.0,0.3608]
[1744917535306,0.1178575,84855.0,84854.0,0.11803563]
[1744917535508,0.1178575,84855.0,84854.0,0.11811563]
[1744917539509,0.2503555,84857.0,84856.0,0.1178561]
[1744917542815,0.1178575,84855.0,84854.0,0.00025673]
[1744917543018,0.1178575,84855.0,84854.0,0.11811563]
[1744917543212,0.1178575,84855.0,84854.0,0.11803563]
[1744917543412,0.1178575,84855.0,84854.0,0.11811563]
[1744917543614,0.1178571,84856.0,84855.0,0.1178561]
[1744917543916,0.1842547,84857.0,84856.0,0.1178561]
[1744917544112,0.1842547,84857.0,84856.0,0.1853561]
[1744917547017,0.1842547,84857.0,84854.0,0.11811413]
[1744917547018,0.1178575,84855.0,84854.0,0.00025673]
[1744917547209,0.1178575,84855.0,84854.0,0.11803563]
[1744917547408,0.1178575,84855.0,84854.0,0.11811563]
[1744917547610,0.1862575,84855.0,84854.0,0.11811563]
[1744917547810,0.2553575,84855.0,84854.0,0.11811563]
[1744917548016,0.1862575,84855.0,84854.0,0.11811563]
[1744917548222,0.0684,84855.0,84854.0,0.25341563]
[1744917548416,0.1178524,84859.0,84856.0,0.0589276]
[1744917548719,0.1767783,84859.0,84858.0,0.1178519]
[1744917549121,0.1767783,84859.0,84858.0,0.2531519]
[1744917549827,0.0684,84863.0,84862.0,0.1178477]
[1744917550121,0.596487,84869.0,84868.0,0.1178394]
[1744917550827,0.731587,84869.0,84868.0,0.1178394]
[1744917551218,0.6137409,84869.0,84868.0,0.1178394]
[1744917551419,0.05909453,84871.0,84868.0,0.0589197]
[1744917551622,0.00017673,84871.0,84870.0,0.1178366]
[1744917551822,0.11801203,84871.0,84870.0,0.2539366]
[1744917553422,0.00017673,84871.0,84870.0,0.2539366]
[1744917554427,0.26532489,84888.0,84887.0,0.117813]
[1744917555121,0.14751319,84888.0,84886.0,0.136]
[1744917555327,0.182513,84887.0,84886.0,0.1178137]
[1744917555518,0.182513,84887.0,84883.0,0.0589092]
[1744917555519,0.1178186,84884.0,84883.0,0.0589092]
[1744917556025,0.2529186,84884.0,84883.0,0.1238092]
[1744917556831,0.1826186,84884.0,84883.0,0.1898092]
[1744917558331,0.0589056,84889.0,84888.0,0.1178103]
[1744917558729,0.0589056,84889.0,84879.0,0.19245362]
[1744917558730,0.0589071,84887.0,84884.0,0.0589085]
[1744917558923,0.1178158,84885.0,84884.0,0.0589085]
[1744917559324,0.1830158,84885.0,84884.0,0.0589885]
[1744917560131,0.2457158,84885.0,84884.0,0.0589885]
[1744917564041,0.2457158,84885.0,84884.0,8e-05]
[1744917564232,0.1178228,84880.0,84879.0,0.00017673]
[1744917564427,0.4786228,84880.0,84879.0,0.00017673]
[1744917564826,0.4786228,84880.0,84879.0,0.00025673]
[1744917565031,0.6031228,84880.0,84879.0,0.00025673]
[1744917565226,0.6031228,84880.0,84879.0,0.00017673]
[1744917565440,0.6031228,84880.0,84879.0,0.00025673]
[1744917567641,0.1178353,84871.0,84870.0,0.000108]